[Event "44th Chess Olympiad Women 2022"]
[Site "Chennai"]
[Date "2022.08.02"]
[Round "5.26"]
[White "Cordero, Daniela"]
[Black "Wafa, Shrook"]
[Result "0-1"]
[ECO "D41"]
[WhiteElo "2005"]
[BlackElo "2141"]
[Annotator "NA RC"]
[PlyCount "90"]
[EventDate "2022.07.29"]
[EventType "team-tourn"]
[EventCountry "IND"]
[SourceTitle "playchess.com"]
[Source "ChessBase"]
[SourceQuality "1"]
[WhiteTeam "Bolivia"]
[BlackTeam "Egypt"]
[WhiteTeamCountry "BOL"]
[BlackTeamCountry "EGY"]
[TimeControl "40/5400+30:1800+30"]

1. d4 {[%emt 0:00:07]} d5 {[%emt 0:00:15]} 2. Nf3 {[%emt 0:00:16]} Nf6 {[%emt 0:00:15]} 3. c4 {[%emt 0:00:21]} e6 {[%emt 0:00:17]} 4. g3 {[%emt 0:00:16]} Be7 {[%emt 0:01:05]} 5. Bg2 {[%emt 0:00:09]} O-O {[%emt 0:00:12]} 6. O-O {[%emt 0:00:33]} c5 {[%emt 0:01:34]} 7. cxd5 {[%emt 0:00:35]} Nxd5 {[%emt 0:01:43]} 8. e4 {[%emt 0:02:41]} Nf6 {[%emt 0:01:03]} 9. Nc3 {[%emt 0:00:47]} Nc6 {[%emt 0:01:16]} 10. dxc5 {[%emt 0:07:16]} Qa5 {[%emt 0:08:23]} 11. Be3 {[%emt 0:09:38]} Ng4 {[%emt 0:05:07]} 12. Bg5 {[%emt 0:01:56]} Bxc5 {[%emt 0:02:29]} 13. Na4 {[%emt 0:10:25]} h6 {[%emt 0:04:41]} 14. Nxc5 {[%emt 0:13:06]} Qxc5 {[%emt 0:01:31]} 15. Bd2 {[%emt 0:02:20]} e5 {[%emt 0:07:53]} 16. Rc1 {[%emt 0:04:37]} Qb6 {[%emt 0:02:06]} 17. Bc3 {[%emt 0:07:20]} Rd8 {[%emt 0:05:31]} 18. Qe1 {[%emt 0:00:35]} Qb5 {[%emt 0:09:02]} 19. h3 {[%emt 0:05:12]} Nf6 {[%emt 0:00:52]} 20. a4 {[%emt 0:00:46]} Qxa4 {[%emt 0:02:28]} 21. Nxe5 {[%emt 0:00:21]} Nd4 {[%emt 0:01:47]} 22. Kh2 {[%emt 0:10:07]} Be6 {[%emt 0:04:51]} 23. f4 {[%emt 0:04:09]} Nb3 {[%emt 0:02:06]} 24. Rb1 {[%emt 0:03:01]} Nc5 {[%emt 0:07:55]} 25. b4 {[%emt 0:01:39]} Nd3 {[%emt 0:04:01]} 26. Nxd3 {[%emt 0:00:16]} Rxd3 {[%emt 0:00:07]} 27. Bxf6 {[%emt 0:02:54]} gxf6 {[%emt 0:00:14]} 28. Rf3 {[%emt 0:04:52]} Rxf3 {[%emt 0:02:50]} 29. Bxf3 {[%emt 0:00:02]} Qc2+ {[%emt 0:00:11]} 30. Bg2 {[%emt 0:00:08]} Rd8 {[%emt 0:01:30]} 31. Rc1 {[%emt 0:00:24]} Qb2 {[%emt 0:01:01]} 32. Rd1 {[%emt 0:07:35]} Rxd1 {[%emt 0:02:06]} 33. Qxd1 {[%emt 0:00:02]} Qxb4 {[%emt 0:00:18]} 34. Qh5 {[%emt 0:00:23]} Kh7 {[%emt 0:04:35]} 35. f5 {[%emt 0:00:58]} Bb3 {[%emt 0:01:18]} 36. e5 {[%emt 0:01:27]} Qe7 {[%emt 0:04:50]} 37. e6 {[%emt 0:01:07]} a5 {[%emt 0:00:32]} 38. Qf3 {[%emt 0:00:33]} a4 {[%emt 0:00:12]} 39. Qe3 {[%emt 0:00:32]} fxe6 {[%emt 0:02:49]} 40. fxe6 {[%emt 0:00:25]} Qxe6 {[%emt 0:00:12]} 41. Qd3+ {[%emt 0:30:13]} Kg7 {[%emt 0:30:21]} 42. Bxb7 {[%emt 0:00:52]} a3 {[%emt 0:01:42]} 43. Bc8 {[%emt 0:00:00]} Bc4 {[%emt 0:00:00]} 44. Bxe6 {[%emt 0:00:00]} Bxd3 {[%emt 0:00:00]} 45. Ba2 {[%emt 0:00:00]} Bg6 {[%emt 0:00:00]} 0-1

[Event "44th Chess Olympiad Women 2022"]
[Site "Chennai"]
[Date "2022.08.02"]
[Round "5.26"]
[White "Molina, Jessica"]
[Black "Moaataz, Ayah"]
[Result "1/2-1/2"]
[ECO "A02"]
[WhiteElo "1889"]
[BlackElo "2119"]
[Annotator "NA RC"]
[PlyCount "127"]
[EventDate "2022.07.29"]
[EventType "team-tourn"]
[EventCountry "IND"]
[SourceTitle "playchess.com"]
[Source "ChessBase"]
[SourceQuality "1"]
[WhiteTeam "Bolivia"]
[BlackTeam "Egypt"]
[WhiteTeamCountry "BOL"]
[BlackTeamCountry "EGY"]
[TimeControl "40/5400+30:1800+30"]

1. f4 {[%emt 0:00:02]} Nf6 {[%emt 0:00:05]} 2. Nf3 {[%emt 0:00:04]} g6 {[%emt 0:00:08]} 3. e3 {[%emt 0:00:06]} Bg7 {[%emt 0:00:11]} 4. Nc3 {[%emt 0:01:52]} d6 {[%emt 0:01:26]} 5. b3 {[%emt 0:00:06]} Nc6 {[%emt 0:01:15]} 6. Bb2 {[%emt 0:00:47]} O-O {[%emt 0:00:54]} 7. Be2 {[%emt 0:00:38]} e5 {[%emt 0:06:11]} 8. fxe5 {[%emt 0:07:47]} dxe5 {[%emt 0:00:07]} 9. e4 {[%emt 0:06:55]} Nd4 {[%emt 0:04:16]} 10. O-O {[%emt 0:07:11]} Re8 {[%emt 0:03:48]} 11. Bd3 {[%emt 0:17:10]} Bg4 {[%emt 0:02:21]} 12. Ne2 {[%emt 0:03:27]} Nxf3+ {[%emt 0:04:56]} 13. gxf3 {[%emt 0:00:27]} Bh3 {[%emt 0:00:04]} 14. Rf2 {[%emt 0:02:42]} Nh5 {[%emt 0:01:00]} 15. Kh1 {[%emt 0:14:13]} Bf6 {[%emt 0:02:25]} 16. Ng3 {[%emt 0:04:18]} Bh4 {[%emt 0:00:47]} 17. Qg1 {[%emt 0:00:48]} Nf4 {[%emt 0:06:16]} 18. Bc4 {[%emt 0:04:55]} c6 {[%emt 0:13:43]} 19. a4 {[%emt 0:02:50]} Bd7 {[%emt 0:03:41]} 20. Qe1 {[%emt 0:06:34]} Qg5 {[%emt 0:09:17]} 21. Rf1 {[%emt 0:05:06]} Nh5 {[%emt 0:03:14]} 22. Rg1 {[%emt 0:04:14]} Qf6 {[%emt 0:05:07]} 23. Qe3 {[%emt 0:01:38]} Nxg3+ {[%emt 0:04:56]} 24. hxg3 {[%emt 0:00:17]} Bg5 {[%emt 0:03:13]} 25. Qf2 {[%emt 0:04:15]} Qd6 {[%emt 0:02:07]} 26. d4 {[%emt 0:01:18]} exd4 {[%emt 0:02:11]} 27. Qxd4 {[%emt 0:00:58]} Qxd4 {[%emt 0:00:09]} 28. Bxd4 {[%emt 0:00:01]} Be6 {[%emt 0:03:00]} 29. Bxe6 {[%emt 0:00:31]} Rxe6 {[%emt 0:00:05]} 30. Rad1 {[%emt 0:00:53]} Be7 {[%emt 0:04:47]} 31. Be3 {[%emt 0:01:32]} f5 {[%emt 0:02:27]} 32. Rd7 {[%emt 0:00:17]} fxe4 {[%emt 0:02:00]} 33. f4 {[%emt 0:00:54]} b6 {[%emt 0:00:30]} 34. g4 {[%emt 0:00:25]} Kf7 {[%emt 0:02:35]} 35. Rgd1 {[%emt 0:00:46]} Ke8 {[%emt 0:00:43]} 36. Rc7 {[%emt 0:00:54]} h5 {[%emt 0:04:38]} 37. gxh5 {[%emt 0:00:39]} gxh5 {[%emt 0:00:06]} 38. Rdd7 {[%emt 0:00:24]} Bd6 {[%emt 0:01:55]} 39. Rxa7 {[%emt 0:00:28]} Rxa7 {[%emt 0:00:06]} 40. Rxa7 {[%emt 0:00:03]} c5 {[%emt 0:00:43]} 41. Rh7 {[%emt 0:30:24]} Rf6 {[%emt 0:31:27]} 42. Rxh5 {[%emt 0:00:51]} Bxf4 {[%emt 0:00:11]} 43. Rh4 {[%emt 0:01:08]} Bxe3 {[%emt 0:01:16]} 44. Rxe4+ {[%emt 0:00:13]} Kd7 {[%emt 0:00:09]} 45. Rxe3 {[%emt 0:00:20]} Rg6 {[%emt 0:01:59]} 46. Kh2 {[%emt 0:01:00]} Kc6 {[%emt 0:00:00]} 47. Rg3 {[%emt 0:00:00]} Re6 {[%emt 0:00:00]} 48. Kh3 {[%emt 0:00:00]} Re4 {[%emt 0:00:00]} 49. Rg6+ {[%emt 0:00:00]} Kb7 {[%emt 0:00:00]} 50. Rg4 {[%emt 0:00:00]} Re3+ {[%emt 0:00:00]} 51. Rg3 {[%emt 0:00:00]} Re4 {[%emt 0:00:00]} 52. Rc3 {[%emt 0:00:00]} Ka6 {[%emt 0:00:00]} 53. Kg3 {[%emt 0:00:00]} Ka5 {[%emt 0:00:00]} 54. Kf3 {[%emt 0:00:00]} Rh4 {[%emt 0:00:00]} 55. Ke2 {[%emt 0:00:00]} Kb4 {[%emt 0:00:00]} 56. Re3 {[%emt 0:00:00]} c4 {[%emt 0:00:00]} 57. bxc4 {[%emt 0:00:00]} Rxc4 {[%emt 0:00:00]} 58. Rb3+ {[%emt 0:00:00]} Kc5 {[%emt 0:00:00]} 59. Rb5+ {[%emt 0:00:00]} Kc6 {[%emt 0:00:00]} 60. Kd3 {[%emt 0:00:00]} Rxa4 {[%emt 0:00:00]} 61. Rh5 {[%emt 0:00:00]} Ra3+ {[%emt 0:00:00]} 62. Kc4 {[%emt 0:00:00]} Ra4+ {[%emt 0:00:00]} 63. Kb3 {[%emt 0:00:00]} Rg4 {[%emt 0:00:00]} 64. Rf5 {[%emt 0:00:00]} 1/2-1/2

[Event "44th Chess Olympiad Women 2022"]
[Site "Chennai"]
[Date "2022.08.02"]
[Round "5.27"]
[White "Mayrhuber, Nikola"]
[Black "Rouda Essa, Alserkal"]
[Result "1-0"]
[ECO "D35"]
[WhiteElo "2141"]
[BlackElo "1874"]
[Annotator "NA RC"]
[PlyCount "85"]
[EventDate "2022.07.29"]
[EventType "team-tourn"]
[EventCountry "IND"]
[SourceTitle "playchess.com"]
[Source "ChessBase"]
[SourceQuality "1"]
[WhiteTeam "Austria"]
[BlackTeam "United Arab Emirates"]
[WhiteTeamCountry "AUT"]
[BlackTeamCountry "UAE"]
[TimeControl "40/5400+30:1800+30"]

1. d4 {[%emt 0:00:04]} Nf6 {[%emt 0:00:10]} 2. c4 {[%emt 0:00:06]} e6 {[%emt 0:00:03]} 3. Nc3 {[%emt 0:00:05]} d5 {[%emt 0:00:05]} 4. cxd5 {[%emt 0:00:44]} exd5 {[%emt 0:00:06]} 5. Bg5 {[%emt 0:00:07]} Be7 {[%emt 0:00:06]} 6. e3 {[%emt 0:00:21]} c6 {[%emt 0:00:16]} 7. Bd3 {[%emt 0:00:18]} Nbd7 {[%emt 0:00:06]} 8. Nge2 {[%emt 0:00:51]} O-O {[%emt 0:00:11]} 9. O-O {[%emt 0:00:07]} h6 {[%emt 0:00:28]} 10. Bh4 {[%emt 0:00:13]} Nh5 {[%emt 0:01:47]} 11. Bxe7 {[%emt 0:00:21]} Qxe7 {[%emt 0:00:06]} 12. Qd2 {[%emt 0:00:38]} Re8 {[%emt 0:05:35]} 13. Rae1 {[%emt 0:02:16]} Ndf6 {[%emt 0:15:04]} 14. Nc1 {[%emt 0:06:14]} Ne4 {[%emt 0:08:05]} 15. Qd1 {[%emt 0:11:17]} Nhf6 {[%emt 0:07:41]} 16. f3 {[%emt 0:02:56]} Nxc3 {[%emt 0:01:01]} 17. bxc3 {[%emt 0:00:07]} c5 {[%emt 0:12:15]} 18. Bb1 {[%emt 0:14:14]} b6 {[%emt 0:07:31]} 19. e4 {[%emt 0:11:50]} dxe4 {[%emt 0:11:19]} 20. fxe4 {[%emt 0:00:10]} Bg4 {[%emt 0:01:13]} 21. Qd3 {[%emt 0:03:50]} Nh7 {[%emt 0:04:04]} 22. e5 {[%emt 0:04:56]} Nf8 {[%emt 0:00:16]} 23. Ne2 {[%emt 0:05:22]} Rad8 {[%emt 0:04:33]} 24. Nf4 {[%emt 0:13:08]} cxd4 {[%emt 0:02:00]} 25. cxd4 {[%emt 0:00:18]} Be6 {[%emt 0:00:45]} 26. Kh1 {[%emt 0:03:19]} Qd7 {[%emt 0:06:19]} 27. Nxe6 {[%emt 0:07:48]} Rxe6 {[%emt 0:01:51]} 28. Re4 {[%emt 0:00:12]} Ng6 {[%emt 0:01:33]} 29. Bc2 {[%emt 0:01:36]} Re7 {[%emt 0:07:56]} 30. Qf3 {[%emt 0:02:00]} Nf8 {[%emt 0:01:16]} 31. Rg4 {[%emt 0:05:31]} Qd5 {[%emt 0:01:30]} 32. Qg3 {[%emt 0:01:16]} Ne6 {[%emt 0:00:29]} 33. Bb3 {[%emt 0:01:08]} Qb5 {[%emt 0:00:06]} 34. Re1 {[%emt 0:01:18]} g6 {[%emt 0:01:09]} 35. d5 {[%emt 0:01:16]} Nf8 {[%emt 0:00:22]} 36. d6 {[%emt 0:00:38]} Ree8 {[%emt 0:00:21]} 37. Rxg6+ {[%emt 0:00:40]} Nxg6 {[%emt 0:00:16]} 38. Qxg6+ {[%emt 0:00:03]} Kh8 {[%emt 0:00:19]} 39. Qxh6+ {[%emt 0:00:21]} Kg8 {[%emt 0:00:04]} 40. Qg6+ {[%emt 0:00:09]} Kh8 {[%emt 0:00:06]} 41. Qf6+ {[%emt 0:31:03]} Kh7 {[%emt 0:30:18]} 42. Re3 {[%emt 0:01:55]} Rxd6 {[%emt 0:01:08]} 43. Rh3+ {[%emt 0:00:18]} 1-0

[Event "44th Chess Olympiad Women 2022"]
[Site "Chennai"]
[Date "2022.08.02"]
[Round "5.27"]
[White "Almaini, Aishah Sarhan"]
[Black "Trippold, Denise"]
[Result "0-1"]
[ECO "E18"]
[WhiteElo "1615"]
[BlackElo "2151"]
[Annotator "NA RC"]
[PlyCount "110"]
[EventDate "2022.07.29"]
[EventType "team-tourn"]
[EventCountry "IND"]
[SourceTitle "playchess.com"]
[Source "ChessBase"]
[SourceQuality "1"]
[WhiteTeam "United Arab Emirates"]
[BlackTeam "Austria"]
[WhiteTeamCountry "UAE"]
[BlackTeamCountry "AUT"]
[TimeControl "40/5400+30:1800+30"]

1. d4 {[%emt 0:00:04]} Nf6 {[%emt 0:00:11]} 2. c4 {[%emt 0:00:12]} e6 {[%emt 0:00:03]} 3. Nf3 {[%emt 0:00:17]} b6 {[%emt 0:03:26]} 4. g3 {[%emt 0:00:20]} Bb7 {[%emt 0:02:11]} 5. Bg2 {[%emt 0:01:05]} Be7 {[%emt 0:00:30]} 6. O-O {[%emt 0:00:11]} O-O {[%emt 0:00:05]} 7. Nc3 {[%emt 0:03:27]} Ne4 {[%emt 0:00:41]} 8. Nxe4 {[%emt 0:04:58]} Bxe4 {[%emt 0:00:07]} 9. Ne5 {[%emt 0:00:19]} Bxg2 {[%emt 0:00:58]} 10. Kxg2 {[%emt 0:00:02]} d6 {[%emt 0:15:24]} 11. Nf3 {[%emt 0:07:39]} d5 {[%emt 0:05:38]} 12. Qa4 {[%emt 0:10:44]} c5 {[%emt 0:03:45]} 13. Bd2 {[%emt 0:12:22]} dxc4 {[%emt 0:02:21]} 14. Qxc4 {[%emt 0:00:21]} Nd7 {[%emt 0:11:05]} 15. Bc3 {[%emt 0:06:10]} Rc8 {[%emt 0:08:51]} 16. Rfd1 {[%emt 0:12:24]} Qc7 {[%emt 0:01:32]} 17. d5 {[%emt 0:14:37]} exd5 {[%emt 0:01:25]} 18. Rxd5 {[%emt 0:00:59]} Nf6 {[%emt 0:04:51]} 19. Bxf6 {[%emt 0:06:32]} Bxf6 {[%emt 0:00:21]} 20. Rad1 {[%emt 0:00:02]} Rfd8 {[%emt 0:19:36]} 21. b3 {[%emt 0:00:14]} Rxd5 {[%emt 0:02:33]} 22. Rxd5 {[%emt 0:00:13]} Rd8 {[%emt 0:01:32]} 23. Qd3 {[%emt 0:08:36]} g6 {[%emt 0:04:40]} 24. Rxd8+ {[%emt 0:02:16]} Bxd8 {[%emt 0:03:12]} 25. Nd2 {[%emt 0:02:40]} Qc6+ {[%emt 0:00:48]} 26. Qf3 {[%emt 0:02:15]} Qd7 {[%emt 0:01:16]} 27. Nc4 {[%emt 0:01:05]} Be7 {[%emt 0:06:05]} 28. Ne5 {[%emt 0:02:53]} Qe6 {[%emt 0:00:01]} 29. Nc6 {[%emt 0:00:53]} Qd7 {[%emt 0:00:23]} 30. Ne5 {[%emt 0:00:40]} Qe6 {[%emt 0:00:01]} 31. Nc6 {[%emt 0:00:09]} a5 {[%emt 0:01:18]} 32. Nxe7+ {[%emt 0:01:06]} Qxe7 {[%emt 0:00:01]} 33. Qd3 {[%emt 0:00:27]} Qe6 {[%emt 0:00:34]} 34. f3 {[%emt 0:00:37]} Qf6 {[%emt 0:00:43]} 35. Kf2 {[%emt 0:00:37]} h5 {[%emt 0:00:44]} 36. h4 {[%emt 0:00:30]} Qe6 {[%emt 0:00:02]} 37. Kg2 {[%emt 0:00:23]} Kh7 {[%emt 0:01:23]} 38. Kh2 {[%emt 0:00:37]} a4 {[%emt 0:00:23]} 39. Kg2 {[%emt 0:00:22]} a3 {[%emt 0:00:45]} 40. Qc4 {[%emt 0:00:39]} Qf6 {[%emt 0:00:27]} 41. Kf2 {[%emt 0:11:37]} Kg7 {[%emt 0:02:12]} 42. e4 {[%emt 0:00:40]} Qb2+ {[%emt 0:00:37]} 43. Qe2 {[%emt 0:00:08]} b5 {[%emt 0:02:50]} 44. Ke1 {[%emt 0:10:20]} c4 {[%emt 0:03:11]} 45. bxc4 {[%emt 0:06:15]} Qxe2+ {[%emt 0:00:56]} 46. Kxe2 {[%emt 0:00:12]} b4 {[%emt 0:00:04]} 47. c5 {[%emt 0:01:15]} Kf6 {[%emt 0:01:32]} 48. Kd3 {[%emt 0:00:52]} b3 {[%emt 0:00:18]} 49. axb3 {[%emt 0:00:06]} a2 {[%emt 0:00:04]} 50. Kc4 {[%emt 0:00:04]} a1=Q {[%emt 0:00:08]} 51. b4 {[%emt 0:00:06]} Ke6 {[%emt 0:01:49]} 52. Kb5 {[%emt 0:00:07]} Qc3 {[%emt 0:02:46]} 53. Ka4 {[%emt 0:01:12]} Kd7 {[%emt 0:00:14]} 54. Kb5 {[%emt 0:00:13]} Kc7 {[%emt 0:00:09]} 55. g4 {[%emt 0:00:15]} Qd3+ {[%emt 0:01:56]} 0-1

[Event "44th Chess Olympiad Women 2022"]
[Site "Chennai"]
[Date "2022.08.02"]
[Round "5.27"]
[White "Mariam, Essa"]
[Black "Hapala, Elisabeth"]
[Result "0-1"]
[ECO "B42"]
[WhiteElo "1591"]
[BlackElo "2113"]
[Annotator "NA RC"]
[PlyCount "82"]
[EventDate "2022.07.29"]
[EventType "team-tourn"]
[EventCountry "IND"]
[SourceTitle "playchess.com"]
[Source "ChessBase"]
[SourceQuality "1"]
[WhiteTeam "United Arab Emirates"]
[BlackTeam "Austria"]
[WhiteTeamCountry "UAE"]
[BlackTeamCountry "AUT"]
[TimeControl "40/5400+30:1800+30"]

1. e4 {[%emt 0:00:03]} c5 {[%emt 0:00:05]} 2. Nf3 {[%emt 0:00:03]} e6 {[%emt 0:00:04]} 3. d4 {[%emt 0:00:03]} cxd4 {[%emt 0:00:03]} 4. Nxd4 {[%emt 0:00:03]} a6 {[%emt 0:00:17]} 5. Bd3 {[%emt 0:03:27]} Bc5 {[%emt 0:00:45]} 6. Nb3 {[%emt 0:00:33]} Ba7 {[%emt 0:00:05]} 7. Qe2 {[%emt 0:02:22]} Nc6 {[%emt 0:00:36]} 8. Be3 {[%emt 0:01:03]} d6 {[%emt 0:02:27]} 9. c4 {[%emt 0:03:34]} Nf6 {[%emt 0:02:05]} 10. Nc3 {[%emt 0:02:38]} O-O {[%emt 0:01:15]} 11. O-O {[%emt 0:00:11]} Bxe3 {[%emt 0:05:34]} 12. Qxe3 {[%emt 0:00:19]} e5 {[%emt 0:00:38]} 13. Rad1 {[%emt 0:02:08]} Be6 {[%emt 0:00:36]} 14. Nd5 {[%emt 0:03:34]} Bxd5 {[%emt 0:04:37]} 15. exd5 {[%emt 0:00:08]} Ne7 {[%emt 0:00:37]} 16. f4 {[%emt 0:05:09]} exf4 {[%emt 0:34:42]} 17. Qxf4 {[%emt 0:01:24]} Ng6 {[%emt 0:06:46]} 18. Bxg6 {[%emt 0:03:36]} hxg6 {[%emt 0:04:35]} 19. Rd3 {[%emt 0:00:56]} Re8 {[%emt 0:07:02]} 20. g4 {[%emt 0:06:48]} Re4 {[%emt 0:01:32]} 21. Qf2 {[%emt 0:01:48]} Rxg4+ {[%emt 0:00:32]} 22. Kh1 {[%emt 0:01:04]} Rxc4 {[%emt 0:02:07]} 23. Rh3 {[%emt 0:06:09]} Rac8 {[%emt 0:02:10]} 24. Nd2 {[%emt 0:01:11]} Rc1 {[%emt 0:05:24]} 25. Qh4 {[%emt 0:02:01]} Rxf1+ {[%emt 0:00:08]} 26. Nxf1 {[%emt 0:00:03]} Nh5 {[%emt 0:00:09]} 27. Qxd8+ {[%emt 0:01:21]} Rxd8 {[%emt 0:00:01]} 28. Rb3 {[%emt 0:00:57]} Rd7 {[%emt 0:03:29]} 29. Kg1 {[%emt 0:01:36]} Kf8 {[%emt 0:00:53]} 30. Kf2 {[%emt 0:00:18]} Nf6 {[%emt 0:03:37]} 31. Ne3 {[%emt 0:00:49]} Ne4+ {[%emt 0:00:40]} 32. Ke2 {[%emt 0:00:07]} b5 {[%emt 0:03:21]} 33. Ra3 {[%emt 0:01:10]} Nc5 {[%emt 0:00:26]} 34. b4 {[%emt 0:04:10]} Na4 {[%emt 0:00:04]} 35. Nc2 {[%emt 0:03:13]} Rc7 {[%emt 0:01:28]} 36. Ne3 {[%emt 0:02:14]} Rc1 {[%emt 0:02:24]} 37. Kd2 {[%emt 0:03:27]} Rh1 {[%emt 0:01:02]} 38. Ng4 {[%emt 0:05:09]} f5 {[%emt 0:01:58]} 39. Nf2 {[%emt 0:02:30]} Rxh2 {[%emt 0:00:08]} 40. Ke3 {[%emt 0:00:07]} Rh4 {[%emt 0:02:27]} 41. Ke2 {[%emt 0:32:03]} Rxb4 {[%emt 0:30:29]} 0-1

[Event "44th Chess Olympiad Women 2022"]
[Site "Chennai"]
[Date "2022.08.02"]
[Round "5.28"]
[White "Kanyamarala, Trisha"]
[Black "Antonova, Nadezhda"]
[Result "1-0"]
[ECO "E70"]
[WhiteElo "2270"]
[BlackElo "1832"]
[Annotator "NA RC"]
[PlyCount "113"]
[EventDate "2022.07.29"]
[EventType "team-tourn"]
[EventCountry "IND"]
[SourceTitle "playchess.com"]
[Source "ChessBase"]
[SourceQuality "1"]
[WhiteTeam "Ireland"]
[BlackTeam "Tajikistan"]
[WhiteTeamCountry "IRL"]
[BlackTeamCountry "TJK"]
[TimeControl "40/5400+30:1800+30"]

1. d4 {[%emt 0:00:11]} Nf6 {[%emt 0:00:14]} 2. c4 {[%emt 0:00:11]} g6 {[%emt 0:00:14]} 3. Nc3 {[%emt 0:00:11]} Bg7 {[%emt 0:00:06]} 4. e4 {[%emt 0:00:07]} d6 {[%emt 0:00:06]} 5. Bd3 {[%emt 0:00:10]} Nc6 {[%emt 0:01:39]} 6. Nge2 {[%emt 0:01:04]} e5 {[%emt 0:02:00]} 7. d5 {[%emt 0:01:03]} Nd4 {[%emt 0:00:51]} 8. Nxd4 {[%emt 0:02:55]} exd4 {[%emt 0:00:02]} 9. Nb5 {[%emt 0:04:47]} O-O {[%emt 0:07:18]} 10. O-O {[%emt 0:10:10]} Nd7 {[%emt 0:05:22]} 11. Bc2 {[%emt 0:09:40]} Ne5 {[%emt 0:00:42]} 12. Nxd4 {[%emt 0:02:37]} Nxc4 {[%emt 0:00:25]} 13. Rb1 {[%emt 0:01:09]} Bd7 {[%emt 0:08:30]} 14. b3 {[%emt 0:02:02]} Ne5 {[%emt 0:21:01]} 15. h3 {[%emt 0:03:56]} c5 {[%emt 0:13:41]} 16. dxc6 {[%emt 0:07:04]} Nxc6 {[%emt 0:02:20]} 17. Bb2 {[%emt 0:18:29]} Nb4 {[%emt 0:00:34]} 18. Ne6 {[%emt 0:06:32]} Bxe6 {[%emt 0:01:57]} 19. Bxg7 {[%emt 0:00:11]} Kxg7 {[%emt 0:01:12]} 20. Qd4+ {[%emt 0:00:06]} Qf6 {[%emt 0:04:16]} 21. Qxb4 {[%emt 0:00:14]} Rac8 {[%emt 0:01:34]} 22. Bd1 {[%emt 0:07:02]} d5 {[%emt 0:01:31]} 23. Qxb7 {[%emt 0:07:03]} dxe4 {[%emt 0:00:57]} 24. Bg4 {[%emt 0:01:32]} Bxg4 {[%emt 0:00:52]} 25. hxg4 {[%emt 0:00:06]} Rfe8 {[%emt 0:02:17]} 26. Qxa7 {[%emt 0:00:33]} Re7 {[%emt 0:08:31]} 27. Qa5 {[%emt 0:02:59]} Qf4 {[%emt 0:02:02]} 28. Qb4 {[%emt 0:01:19]} Rd7 {[%emt 0:01:51]} 29. Rbe1 {[%emt 0:00:34]} f5 {[%emt 0:06:12]} 30. gxf5 {[%emt 0:02:20]} gxf5 {[%emt 0:00:01]} 31. Rd1 {[%emt 0:00:48]} Rcd8 {[%emt 0:05:55]} 32. Qc3+ {[%emt 0:00:36]} Kg6 {[%emt 0:00:27]} 33. Qc6+ {[%emt 0:03:22]} Rd6 {[%emt 0:00:01]} 34. Rxd6+ {[%emt 0:00:53]} Rxd6 {[%emt 0:00:00]} 35. Qe8+ {[%emt 0:00:27]} Kh6 {[%emt 0:01:25]} 36. g3 {[%emt 0:01:10]} Qd2 {[%emt 0:00:02]} 37. Kg2 {[%emt 0:00:37]} Kg7 {[%emt 0:01:22]} 38. Qe7+ {[%emt 0:01:14]} Kg8 {[%emt 0:01:05]} 39. Rh1 {[%emt 0:01:03]} h6 {[%emt 0:00:16]} 40. Qe8+ {[%emt 0:01:38]} Kg7 {[%emt 0:00:03]} 41. Qe5+ {[%emt 0:31:06]} Kg6 {[%emt 0:14:12]} 42. Qh8 {[%emt 0:00:00]} Rd7 {[%emt 0:00:42]} 43. Qg8+ {[%emt 0:00:00]} Kf6 {[%emt 0:01:18]} 44. Qf8+ {[%emt 0:00:00]} Kg6 {[%emt 0:02:52]} 45. Qe8+ {[%emt 0:00:00]} Kh7 {[%emt 0:06:38]} 46. Qe6 {[%emt 0:00:00]} Rd4 {[%emt 0:07:05]} 47. Qf7+ {[%emt 0:00:00]} Kh8 {[%emt 0:00:07]} 48. Qf8+ {[%emt 0:00:00]} Kh7 {[%emt 0:00:11]} 49. Qxf5+ {[%emt 0:00:00]} Kg7 {[%emt 0:00:18]} 50. Qe5+ {[%emt 0:00:00]} Kh7 {[%emt 0:01:04]} 51. Qe7+ {[%emt 0:00:00]} Kg6 {[%emt 0:01:24]} 52. Qe6+ {[%emt 0:00:00]} Kg7 {[%emt 0:00:31]} 53. Rh4 {[%emt 0:00:00]} h5 {[%emt 0:00:53]} 54. Qe5+ {[%emt 0:00:00]} Kg8 {[%emt 0:00:42]} 55. Rxh5 {[%emt 0:00:00]} e3 {[%emt 0:00:25]} 56. Qe6+ {[%emt 0:00:00]} Kg7 {[%emt 0:00:26]} 57. Rg5+ {[%emt 0:00:00]} 1-0

[Event "44th Chess Olympiad Women 2022"]
[Site "Chennai"]
[Date "2022.08.02"]
[Round "5.28"]
[White "Mirza, Diana"]
[Black "Saidova, Rukhshona"]
[Result "1-0"]
[ECO "E85"]
[WhiteElo "1898"]
[BlackElo "1624"]
[Annotator "NA RC COMBH"]
[PlyCount "83"]
[EventDate "2022.07.29"]
[EventType "team-tourn"]
[EventCountry "IND"]
[SourceTitle "playchess.com"]
[Source "ChessBase"]
[SourceQuality "1"]
[WhiteTeam "Ireland"]
[BlackTeam "Tajikistan"]
[WhiteTeamCountry "IRL"]
[BlackTeamCountry "TJK"]
[TimeControl "40/5400+30:1800+30"]

1. d4 {[%emt 0:00:03]} Nf6 {[%emt 0:00:26]} 2. c4 {[%emt 0:00:05]} g6 {[%emt 0:00:16]} 3. f3 {[%emt 0:00:05]} Bg7 {[%emt 0:00:16]} 4. e4 {[%emt 0:00:05]} d6 {[%emt 0:00:20]} 5. Nc3 {[%emt 0:00:16]} O-O {[%emt 0:00:35]} 6. Be3 {[%emt 0:00:08]} e5 {[%emt 0:00:44]} 7. Nge2 {[%emt 0:00:10]} Nh5 {[%emt 0:02:46]} 8. g4 {[%emt 0:01:39]} Nf6 {[%emt 0:01:49]} 9. Qd2 {[%emt 0:01:07]} Nc6 {[%emt 0:02:35]} 10. d5 {[%emt 0:00:27]} Ne7 {[%emt 0:00:52]} 11. Bh6 {[%emt 0:01:19]} c6 {[%emt 0:03:23]} 12. h4 {[%emt 0:02:37]} cxd5 {[%emt 0:01:56]} 13. cxd5 {[%emt 0:00:47]} Qb6 {[%emt 0:02:26]} 14. Bxg7 {[%emt 0:04:56]} Kxg7 {[%emt 0:00:11]} 15. h5 {[%emt 0:02:20]} Neg8 {[%emt 0:17:59]} 16. O-O-O {[%emt 0:08:09]} Qf2 {[%emt 0:06:02]} 17. Bh3 {[%emt 0:04:56]} b5 {[%emt 0:03:24]} 18. Rdf1 {[%emt 0:07:28]} Qc5 {[%emt 0:00:59]} 19. Kb1 {[%emt 0:00:44]} b4 {[%emt 0:03:13]} 20. Nd1 {[%emt 0:06:27]} Ba6 {[%emt 0:04:00]} 21. Rfg1 {[%emt 0:18:28]} Qc4 {[%emt 0:07:58]} 22. Nc1 {[%emt 0:00:45]} Rab8 {[%emt 0:15:42]} 23. Ne3 {[%emt 0:11:51]} Qc7 {[%emt 0:08:07]} 24. g5 {[%emt 0:10:34]} Ne8 {[%emt 0:04:04]} 25. Qh2 {[%emt 0:01:08]} Kh8 {[%emt 0:00:45]} 26. Bg4 {[%emt 0:04:07]} b3 {[%emt 0:01:01]} 27. a3 {[%emt 0:02:31]} Rb7 {[%emt 0:04:07]} 28. Rg3 {[%emt 0:02:13]} Bb5 {[%emt 0:02:41]} 29. Rh3 {[%emt 0:00:52]} a5 {[%emt 0:01:38]} 30. f4 {[%emt 0:01:30]} Qe7 {[%emt 0:02:18]} 31. hxg6 {[%emt 0:03:34]} fxg6 {[%emt 0:00:15]} 32. f5 {[%emt 0:00:51]} Ngf6 {[%emt 0:01:40]} 33. gxf6 {[%emt 0:00:32]} Nxf6 {[%emt 0:00:09]} 34. fxg6 {[%emt 0:00:16]} Be8 {[%emt 0:01:14]} 35. g7+ {[%emt 0:00:23]} Qxg7 {[%emt 0:00:15]} 36. Bf5 {[%emt 0:00:14]} Bg6 {[%emt 0:00:33]} 37. Rg1 {[%emt 0:00:50]} Kg8 {[%emt 0:01:05]} 38. Bxg6 {[%emt 0:00:51]} hxg6 {[%emt 0:00:27]} 39. Nf5 {[%emt 0:00:24]} gxf5 {[%emt 0:00:59]} 40. Rh8+ {[%emt 0:00:41]} Kf7 {[%emt 0:00:01]} 41. Rxg7+ {[%emt 0:30:06]} Kxg7 {[%emt 0:30:12]} 42. Qh6+ {[%emt 0:00:02]} 1-0